Workbook

Sheet Ventas
A4: Contrato | B4: Apellidos | C4: Nombre | D4: Local | E4: Fecha | F4: Destino de Venta | G4: Total Ventas
A5: 25641 | B5: June | C5: Julio | D5: Jockey Plaza | E5: 2008-01-02 | F5: Tokio | G5: 3210
A6: 25642 | B6: June | C6: Julio | D6: Jockey Plaza | E6: 2008-01-05 | F6: Miami | G6: 1500.17
A7: 25643 | B7: Wong | C7: Richard | D7: Boulevard Asia | E7: 2008-01-10 | F7: Santiago | G7: 2903.39
A8: 25644 | B8: Wong | C8: Richard | D8: Boulevard Asia | E8: 2008-01-15 | F8: Tokio | G8: 2548.35
A9: 25645 | B9: Levinky | C9: Hans | D9: MegaPlaza | E9: 2008-01-16 | F9: Miami | G9: 922.34
A10: 25646 | B10: Padilla | C10: César | D10: Jockey Plaza | E10: 2008-01-18 | F10: Pekin | G10: 1998
A11: 25647 | B11: Padilla | C11: César | D11: Jockey Plaza | E11: 2008-01-22 | F11: Lima | G11: 3050
A12: 25648 | B12: June | C12: Julio | D12: Jockey Plaza | E12: 2008-01-22 | F12: Munich | G12: 1665
A13: 25649 | B13: June | C13: Julio | D13: Jockey Plaza | E13: 2008-01-23 | F13: New York | G13: 1401.86
A14: 25650 | B14: June | C14: Julio | D14: Jockey Plaza | E14: 2008-01-25 | F14: Lima | G14: 855.08
A15: 25651 | B15: Vera | C15: Cecilia | D15: MegaPlaza | E15: 2008-01-25 | F15: Munich | G15: 3329.97
A16: 25652 | B16: Bronx | C16: Juan | D16: MegaPlaza | E16: 2008-01-26 | F16: New York | G16: 1152.11
A17: 25653 | B17: Vera | C17: Cecilia | D17: MegaPlaza | E17: 2008-01-26 | F17: Los Angeles | G17: 3287.38
A18: 25654 | B18: Levinky | C18: Hans | D18: MegaPlaza | E18: 2008-01-28 | F18: Londres | G18: 1401.86
A19: 25655 | B19: Padilla | C19: María | D19: Boulevard Asia | E19: 2008-02-02 | F19: Arequipa | G19: 515.82
A20: 25656 | B20: Wong | C20: Richard | D20: Boulevard Asia | E20: 2008-02-05 | F20: California | G20: 1109.99
A21: 25657 | B21: Wong | C21: Richard | D21: Boulevard Asia | E21: 2008-02-06 | F21: Los Angeles | G21: 1998
A22: 25658 | B22: Padilla | C22: María | D22: Boulevard Asia | E22: 2008-02-06 | F22: Ohio | G22: 1665
A23: 25659 | B23: Padilla | C23: María | D23: Boulevard Asia | E23: 2008-02-08 | F23: Guadalajara | G23: 2920.11
A24: 25660 | B24: Wong | C24: Richard | D24: Boulevard Asia | E24: 2008-02-10 | F24: Los Angeles | G24: 1980
A25: 25661 | B25: Levinky | C25: Hans | D25: MegaPlaza | E25: 2008-02-11 | F25: Moscu | G25: 1112.19
A26: 25662 | B26: Bronx | C26: Juan | D26: MegaPlaza | E26: 2008-02-14 | F26: Londres | G26: 1500.17
A27: 25663 | B27: Padilla | C27: César | D27: Jockey Plaza | E27: 2008-02-15 | F27: Arequipa | G27: 810
A28: 25664 | B28: June | C28: Julio | D28: Jockey Plaza | E28: 2008-02-15 | F28: Roma | G28: 1109.99
A29: 25665 | B29: June | C29: Julio | D29: Jockey Plaza | E29: 2008-02-16 | F29: Roma | G29: 1152.11
A30: 25666 | B30: Vera | C30: Cecilia | D30: MegaPlaza | E30: 2008-02-16 | F30: Loreto | G30: 3287.44
A31: 25667 | B31: Bronx | C31: Juan | D31: MegaPlaza | E31: 2008-02-21 | F31: Chicago | G31: 855.08
A32: 25668 | B32: Bronx | C32: Juan | D32: MegaPlaza | E32: 2008-02-23 | F32: Lima | G32: 2822.18
A33: 25669 | B33: Levinky | C33: Hans | D33: MegaPlaza | E33: 2008-02-23 | F33: Ohio | G33: 1112.19
A34: 25670 | B34: Bronx | C34: Juan | D34: MegaPlaza | E34: 2008-02-25 | F34: Budapest | G34: 1109.99
A35: 25671 | B35: Padilla | C35: María | D35: Boulevard Asia | E35: 2008-02-28 | F35: Buenos Aires | G35: 3329.97
A36: 25672 | B36: Padilla | C36: María | D36: Boulevard Asia | E36: 2008-03-05 | F36: California | G36: 1109.99
A37: 25673 | B37: Vera | C37: Cecilia | D37: MegaPlaza | E37: 2008-03-05 | F37: Chicago | G37: 865
A38: 25674 | B38: Bronx | C38: Juan | D38: MegaPlaza | E38: 2008-03-05 | F38: New York | G38: 1152.11
A39: 25675 | B39: Levinky | C39: Hans | D39: MegaPlaza | E39: 2008-03-07 | F39: Budapest | G39: 799.5
A40: 25676 | B40: Bronx | C40: Juan | D40: MegaPlaza | E40: 2008-03-07 | F40: Lima | G40: 3650
A41: 25677 | B41: Levinky | C41: Hans | D41: MegaPlaza | E41: 2008-03-08 | F41: Orlando | G41: 855.08
A42: 25678 | B42: Vera | C42: Cecilia | D42: MegaPlaza | E42: 2008-03-08 | F42: Cajamarca | G42: 1152.11
A43: 25679 | B43: Vera | C43: Cecilia | D43: MegaPlaza | E43: 2008-03-08 | F43: Arizona | G43: 3560
A44: 25680 | B44: Vera | C44: Cecilia | D44: MegaPlaza | E44: 2008-03-10 | F44: Miami | G44: 782.48
A45: 25681 | B45: Levinky | C45: Hans | D45: MegaPlaza | E45: 2008-03-12 | F45: Budapest | G45: 795
A46: 25682 | B46: Vera | C46: Cecilia | D46: MegaPlaza | E46: 2008-03-12 | F46: Guadalajara | G46: 3160
A47: 25683 | B47: Vera | C47: Cecilia | D47: MegaPlaza | E47: 2008-03-14 | F47: Miami | G47: 1112.19
A48: 25684 | B48: June | C48: Julio | D48: Jockey Plaza | E48: 2008-03-15 | F48: Guadalajara | G48: 1152.11
A49: 25685 | B49: June | C49: Julio | D49: Jockey Plaza | E49: 2008-03-16 | F49: Budapest | G49: 802
A50: 25686 | B50: June | C50: Julio | D50: Jockey Plaza | E50: 2008-03-21 | F50: Cajamarca | G50: 1152.11
A51: 25687 | B51: Padilla | C51: César | D51: Jockey Plaza | E51: 2008-03-25 | F51: Lima | G51: 1112.19
A52: 25688 | B52: Padilla | C52: César | D52: Jockey Plaza | E52: 2008-03-25 | F52: Londres | G52: 1401.86
A53: 25689 | B53: June | C53: Julio | D53: Jockey Plaza | E53: 2008-03-28 | F53: Miami | G53: 800
A54: 25690 | B54: Levinky | C54: Hans | D54: MegaPlaza | E54: 2008-03-30 | F54: Budapest | G54: 1482
A55: 25691 | B55: Bronx | C55: Juan | D55: MegaPlaza | E55: 2008-04-03 | F55: Miami | G55: 3550
A56: 25692 | B56: June | C56: Julio | D56: Jockey Plaza | E56: 2008-04-05 | F56: Guadalajara | G56: 2597
A57: 25693 | B57: June | C57: Julio | D57: Jockey Plaza | E57: 2008-04-10 | F57: Chicago | G57: 3192
A58: 25694 | B58: June | C58: Julio | D58: Jockey Plaza | E58: 2008-04-11 | F58: Arizona | G58: 2378
A59: 25695 | B59: June | C59: Julio | D59: Jockey Plaza | E59: 2008-04-13 | F59: Budapest | G59: 2699
A60: 25696 | B60: Sáenz | C60: Rafael | D60: Boulevard Asia | E60: 2008-04-15 | F60: New York | G60: 2208
A61: 25697 | B61: Padilla | C61: María | D61: Boulevard Asia | E61: 2008-04-15 | F61: Miami | G61: 2080
A62: 25698 | B62: Padilla | C62: María | D62: Boulevard Asia | E62: 2008-04-18 | F62: Guadalajara | G62: 3275
A63: 25699 | B63: Bronx | C63: Juan | D63: MegaPlaza | E63: 2008-04-19 | F63: Arizona | G63: 2595
A64: 25700 | B64: Bronx | C64: Juan | D64: MegaPlaza | E64: 2008-04-19 | F64: Lima | G64: 2459
A65: 25701 | B65: Padilla | C65: María | D65: Boulevard Asia | E65: 2008-04-24 | F65: Cajamarca | G65: 1565
A66: 25702 | B66: Sáenz | C66: Rafael | D66: Boulevard Asia | E66: 2008-04-25 | F66: California | G66: 2577
A67: 25703 | B67: Padilla | C67: César | D67: Jockey Plaza | E67: 2008-04-28 | F67: Londres | G67: 2261
A68: 25704 | B68: Padilla | C68: César | D68: Jockey Plaza | E68: 2008-05-05 | F68: Roma | G68: 2429
A69: 25705 | B69: Padilla | C69: César | D69: Jockey Plaza | E69: 2008-05-06 | F69: Arequipa | G69: 1589
A70: 25706 | B70: Levinky | C70: Hans | D70: MegaPlaza | E70: 2008-05-08 | F70: Lima | G70: 1457
A71: 25707 | B71: Bronx | C71: Juan | D71: MegaPlaza | E71: 2008-05-12 | F71: Orlando | G71: 3289
A72: 25708 | B72: Padilla | C72: María | D72: Boulevard Asia | E72: 2008-05-12 | F72: Roma | G72: 2406
A73: 25709 | B73: Wong | C73: Richard | D73: Boulevard Asia | E73: 2008-05-14 | F73: Orlando | G73: 1046
A74: 25710 | B74: Wong | C74: Richard | D74: Boulevard Asia | E74: 2008-05-16 | F74: Chicago | G74: 1116
A75: 25711 | B75: June | C75: Julio | D75: Jockey Plaza | E75: 2008-05-18 | F75: Budapest | G75: 2621
A76: 25712 | B76: June | C76: Julio | D76: Jockey Plaza | E76: 2008-05-18 | F76: Cajamarca | G76: 1139
A77: 25713 | B77: June | C77: Julio | D77: Jockey Plaza | E77: 2008-05-18 | F77: Arequipa | G77: 3062
A78: 25714 | B78: Padilla | C78: César | D78: Jockey Plaza | E78: 2008-05-21 | F78: Lima | G78: 1004
A79: 25715 | B79: June | C79: Julio | D79: Jockey Plaza | E79: 2008-05-25 | F79: Ohio | G79: 2459
A80: 25716 | B80: June | C80: Julio | D80: Jockey Plaza | E80: 2008-05-26 | F80: Ohio | G80: 3542
A81: 25717 | B81: Padilla | C81: María | D81: Boulevard Asia | E81: 2008-05-26 | F81: Cajamarca | G81: 1074
A82: 25718 | B82: Wong | C82: Richard | D82: Boulevard Asia | E82: 2008-05-28 | F82: California | G82: 1724
A83: 25719 | B83: Sáenz | C83: Rafael | D83: Boulevard Asia | E83: 2008-05-28 | F83: New York | G83: 2403
A84: 25720 | B84: Vera | C84: Cecilia | D84: MegaPlaza | E84: 2008-05-30 | F84: New York | G84: 1696
A85: 25721 | B85: Levinky | C85: Hans | D85: MegaPlaza | E85: 2008-05-30 | F85: Chicago | G85: 2373
A86: 25722 | B86: Wong | C86: Richard | D86: Boulevard Asia | E86: 2008-06-01 | F86: Arizona | G86: 1455
A87: 25723 | B87: Sáenz | C87: Rafael | D87: Boulevard Asia | E87: 2008-06-05 | F87: Guadalajara | G87: 2305
A88: 25724 | B88: Sáenz | C88: Rafael | D88: Boulevard Asia | E88: 2008-06-05 | F88: Londres | G88: 982
A89: 25725 | B89: Padilla | C89: César | D89: Jockey Plaza | E89: 2008-06-06 | F89: Londres | G89: 3194
A90: 25726 | B90: June | C90: Julio | D90: Jockey Plaza | E90: 2008-06-07 | F90: Munich | G90: 3384
A91: 25727 | B91: June | C91: Julio | D91: Jockey Plaza | E91: 2008-06-08 | F91: Tokio | G91: 1920
A92: 25728 | B92: June | C92: Julio | D92: Jockey Plaza | E92: 2008-06-08 | F92: Tokio | G92: 1960
A93: 25729 | B93: Padilla | C93: César | D93: Jockey Plaza | E93: 2008-06-08 | F93: Munich | G93: 2549
A94: 25730 | B94: Padilla | C94: César | D94: Jockey Plaza | E94: 2008-06-10 | F94: Pekin | G94: 2751
A95: 25731 | B95: June | C95: Julio | D95: Jockey Plaza | E95: 2008-06-12 | F95: Pekin | G95: 1323
A96: 25732 | B96: June | C96: Julio | D96: Jockey Plaza | E96: 2008-06-14 | F96: Arizona | G96: 1940
A97: 25733 | B97: Levinky | C97: Hans | D97: MegaPlaza | E97: 2008-06-14 | F97: Orlando | G97: 3016
A98: 25734 | B98: Vera | C98: Cecilia | D98: MegaPlaza | E98: 2008-06-15 | F98: Miami | G98: 2864
A99: 25735 | B99: Sáenz | C99: Rafael | D99: Boulevard Asia | E99: 2008-06-25 | F99: Moscu | G99: 2001

Sheet Tablas
A1: Listado General de Ventas
A4: Cód | B4: Nombre del Cliente | C4: Categoría Cliente | D4: Lugar | E4: Fecha | F4: Vendedor | G4: Monto
A5: 1 | B5: SUPERMERCADOS PERUANOS S.A. | C5: Plaza Vea | D5: San Borja | E5: 2008-10-11 | F5: Ulloa, Manuel | G5: 3620
A6: 2 | B6: KINA OSHIRO | C6: Otros | D6: Pueblo Libre | E6: 2008-08-07 | F6: Díaz, Rita | G6: 12600
A7: 3 | B7: GUERRERO VALENCIA | C7: Menudencias | D7: Huaral | E7: 2007-12-15 | F7: Díaz, Rita | G7: 12460
A8: 4 | B8: ALACUTE PERALTA | C8: Mayoristas | D8: La Victoria | E8: 2008-03-03 | F8: Díaz, Rita | G8: 14470
A9: 5 | B9: SOCIEDAD SUIZO PERUANA DE EMBUTIDOS | C9: Mayoristas | D9: Chancay | E9: 2008-03-06 | F9: Díaz, Rita | G9: 3510
A10: 6 | B10: EMBUTIDOS HUARAL SAC. | C10: Mayoristas | D10: Huaral | E10: 2009-02-09 | F10: Díaz, Rita | G10: 10950
A11: 7 | B11: PRODUCTOS ALIMENTICIOS CATALANES S.A. | C11: Mayoristas | D11: Chorrillos | E11: 2009-07-04 | F11: Díaz, Rita | G11: 14580
A12: 8 | B12: AVICOLA ESTHER S.R.L. | C12: Mayoristas | D12: La Victoria | E12: 2008-05-04 | F12: Díaz, Rita | G12: 13010
A13: 9 | B13: CARPIO CHUCHON | C13: Mayoristas | D13: La Victoria | E13: 2007-05-05 | F13: Díaz, Rita | G13: 3370
A14: 10 | B14: RAPIZZA & FOOD | C14: Mayoristas | D14: Chimbote | E14: 2008-10-08 | F14: Díaz, Rita | G14: 6790
A15: 11 | B15: ROMANI AROTOMA | C15: Mayoristas | D15: Ate | E15: 2007-06-17 | F15: Ulloa, Manuel | G15: 14310
A16: 12 | B16: SALCHICHERIA AMERICANA S.R.L. | C16: Mayoristas | D16: Chorrillos | E16: 2007-01-28 | F16: Díaz, Rita | G16: 12180
A17: 13 | B17: CASAS CARDENAS | C17: Menudencias | D17: Huaral | E17: 2007-11-26 | F17: Díaz, Rita | G17: 14020
A18: 14 | B18: ALIMENTOS DEL DIA E.I.R.L. | C18: Mayoristas | D18: La Victoria | E18: 2007-08-03 | F18: Díaz, Rita | G18: 14910
A19: 15 | B19: AGROPECUARIA MANGEL S.A.C. | C19: Mayoristas | D19: La Victoria | E19: 2007-01-09 | F19: Díaz, Rita | G19: 13460
A20: 16 | B20: CALDERON INFANTE | C20: Menudencias | D20: Trujillo | E20: 2008-08-09 | F20: Díaz, Rita | G20: 7130
A21: 17 | B21: PRODUCTOS RAZZETO & NESTOROVIC S.A.C. | C21: Mayoristas | D21: Trujillo | E21: 2008-08-10 | F21: Ulloa, Manuel | G21: 5210
A22: 18 | B22: S.W. SERVICIOS DE ALIMENTACION EIRL | C22: Concesionarios | D22: Huacho | E22: 2008-12-25 | F22: Díaz, Rita | G22: 15330
A23: 19 | B23: PITA DE ARCE | C23: Concesionarios | D23: Chancay | E23: 2008-04-14 | F23: Díaz, Rita | G23: 6750
A24: 20 | B24: UNION DE OBRAS DE ASISTENCIA SOCIAL | C24: Inst. Públicas | D24: Miraflores | E24: 2008-06-01 | F24: Díaz, Rita | G24: 3740
A25: 21 | B25: HIGA DE CHINEN | C25: Rest. | D25: Huaral | E25: 2009-01-31 | F25: Díaz, Rita | G25: 3130
A26: 22 | B26: CHINEN CHINEN | C26: Rest. | D26: Huaral | E26: 2007-08-28 | F26: Díaz, Rita | G26: 11280
A27: 23 | B27: GOYCOCHEA COTRINA DE DELPINO | C27: Rest. | D27: Chancay | E27: 2009-06-09 | F27: Díaz, Rita | G27: 3690
A28: 24 | B28: SERVICIOS COMERCIALES Y CULTURALES | C28: Rest. | D28: Chancay | E28: 2007-05-15 | F28: Díaz, Rita | G28: 5540
A29: 25 | B29: CHINEN CHINEN | C29: Rest. | D29: Huaral | E29: 2007-08-07 | F29: Díaz, Rita | G29: 5450
A30: 26 | B30: MARCELO SERVICIOS TURISTICOS EIRL | C30: Rest. | D30: Chancay | E30: 2009-01-07 | F30: Díaz, Rita | G30: 6250
A31: 27 | B31: ZAVALA LANDA | C31: Rest. | D31: Chancay | E31: 2008-01-09 | F31: Díaz, Rita | G31: 4200
A32: 28 | B32: BARRETO BOGGIO | C32: Rest. | D32: Chancay | E32: 2009-04-25 | F32: Díaz, Rita | G32: 10940
A33: 29 | B33: DUEÐAS ALTAMIRANO | C33: Braserías | D33: Huancayo | E33: 2008-04-17 | F33: Díaz, Rita | G33: 12720
A34: 30 | B34: SAIVAY GONZALEZ | C34: Braserías | D34: Huacho | E34: 2009-04-17 | F34: Díaz, Rita | G34: 15460
A35: 31 | B35: SAMPEI OKUMA | C35: Braserías | D35: Huacho | E35: 2008-03-10 | F35: Díaz, Rita | G35: 10940
A36: 32 | B36: ALVARADO CARRION | C36: Braserías | D36: Huaral | E36: 2009-11-23 | F36: Díaz, Rita | G36: 4620
A37: 33 | B37: TRANSERVICE PERY S S.R.L. | C37: Braserías | D37: Churin | E37: 2009-02-07 | F37: Díaz, Rita | G37: 10990
A38: 34 | B38: LA DELICIA S.C.R.L. | C38: Tiendas | D38: Huacho | E38: 2008-06-22 | F38: Díaz, Rita | G38: 10820
A39: 35 | B39: GRIFOS BRIGNETI E.I.R.L. | C39: Tiendas | D39: Chancay | E39: 2008-02-27 | F39: Díaz, Rita | G39: 11550
A40: 36 | B40: AIDA WATANABE | C40: Tiendas | D40: Huaral | E40: 2009-07-15 | F40: Díaz, Rita | G40: 7050
A41: 37 | B41: EMP.PRODUCC.COMERC. MOSQUERA | C41: Distribuidores | D41: Huacho | E41: 2008-02-02 | F41: Ulloa, Manuel | G41: 5170
A42: 38 | B42: MARQUEZ REYNOSO | C42: Distribuidores | D42: Huaral | E42: 2009-12-15 | F42: Ulloa, Manuel | G42: 7790
A43: 39 | B43: PADILLA DURAN | C43: Bodegas | D43: Chancay | E43: 2009-07-06 | F43: Díaz, Rita | G43: 4580
A44: 40 | B44: RODRIGUEZ CAM | C44: Bodegas | D44: Huaral | E44: 2007-05-11 | F44: Díaz, Rita | G44: 9920
A45: 41 | B45: GARCIA FERRER | C45: Bodegas | D45: Huaral | E45: 2007-08-17 | F45: Díaz, Rita | G45: 8100
A46: 42 | B46: MARCO DE OBREGON | C46: Minoristas | D46: Chancay | E46: 2007-08-11 | F46: Díaz, Rita | G46: 4670
A47: 43 | B47: ROSARIO VALVERDE | C47: Minoristas | D47: Chancay | E47: 2007-04-13 | F47: Díaz, Rita | G47: 6300
A48: 44 | B48: PALACIOS CAMONES | C48: Minoristas | D48: Chancay | E48: 2007-01-08 | F48: Díaz, Rita | G48: 6060
A49: 45 | B49: CUBAS VASQUEZ | C49: Minoristas | D49: Chancay | E49: 2008-07-21 | F49: Díaz, Rita | G49: 15570
A50: 46 | B50: RODRIGUEZ RISCO | C50: Minoristas | D50: Huaral | E50: 2008-01-29 | F50: Díaz, Rita | G50: 6660
A51: 47 | B51: ANTICONA ROMERO | C51: Otros | D51: Puente Piedra | E51: 2007-08-06 | F51: Díaz, Rita | G51: 13760
A52: 48 | B52: SIFUENTES | C52: Otros | D52: Chancay | E52: 2007-01-08 | F52: Díaz, Rita | G52: 7070
A53: 49 | B53: ZAVALA SILVA | C53: Otros | D53: Huaral | E53: 2007-01-12 | F53: Díaz, Rita | G53: 12450
A54: 50 | B54: VILCA HERNANDEZ | C54: Otros | D54: Callao | E54: 2007-09-02 | F54: Díaz, Rita | G54: 4430
A55: 51 | B55: VILLANUEVA FLORES | C55: Otros | D55: Chimbote | E55: 2007-12-19 | F55: Díaz, Rita | G55: 11730
A56: 52 | B56: URSUS TRANSPORTES S.A. | C56: Otros | D56: Callao | E56: 2007-02-09 | F56: Díaz, Rita | G56: 8580
A57: 53 | B57: RAMOS ASENCIO | C57: Otros | D57: Chancay | E57: 2007-10-02 | F57: Díaz, Rita | G57: 14860
A58: 54 | B58: RINTI S.A. | C58: Menudencias | D58: Ate | E58: 2007-02-26 | F58: Díaz, Rita | G58: 15100
A59: 55 | B59: MENDOZA VEGA | C59: Otros | D59: Chancay | E59: 2008-07-19 | F59: Díaz, Rita | G59: 8400
A60: 56 | B60: TRANSPORTE MACAZANA E.I.R.L. | C60: Otros | D60: San Miguel | E60: 2008-02-29 | F60: Díaz, Rita | G60: 4270
A61: 57 | B61: INDUSTRIAS EL CAPI S.R.L. | C61: Otros | D61: Huaral | E61: 2007-07-17 | F61: Díaz, Rita | G61: 15530
A62: 58 | B62: ESPINOZA DULANTO | C62: Otros | D62: Chancay | E62: 2009-04-13 | F62: Díaz, Rita | G62: 4490
A63: 61 | B63: APARICIO DE CARDENAS | C63: Distribuidores | D63: Ayacucho | E63: 2007-11-16 | F63: Altamirano, Frecia | G63: 10280
A64: 62 | B64: ANGULO RENGIFO | C64: Minoristas | D64: San Borja | E64: 2008-12-10 | F64: Altamirano, Frecia | G64: 11040
A65: 63 | B65: APOYO TECNO AGRARIO S.A. | C65: Distribuidores | D65: Tacna | E65: 2008-04-10 | F65: Ulloa, Manuel | G65: 10630
A66: 64 | B66: B & B NEGOCIOS ALIMENTARIOS S.R.LTD | C66: Distribuidores | D66: Apurimac | E66: 2007-02-25 | F66: Altamirano, Frecia | G66: 5570
A67: 65 | B67: BRAVO GUERRA | C67: Distribuidores | D67: Huanuco | E67: 2008-06-19 | F67: Altamirano, Frecia | G67: 9750
A68: 66 | B68: CHANG S.C.R.L | C68: Distribuidores | D68: Chincha | E68: 2007-08-10 | F68: Altamirano, Frecia | G68: 6990
A69: 67 | B69: CAPITALNET S.A.C | C69: Concesionarios | D69: Lince | E69: 2007-03-04 | F69: Altamirano, Frecia | G69: 14290
A70: 68 | B70: CATERING INTEGRAL S.R.L | C70: Concesionarios | D70: La Molina | E70: 2008-02-24 | F70: Altamirano, Frecia | G70: 3680
A71: 69 | B71: CENTRO NAVAL DEL PERU | C71: Concesionarios | D71: San Borja | E71: 2008-08-15 | F71: Ulloa, Manuel | G71: 12370
A72: 70 | B72: CHIFA CHOY-TAC SRLTDA | C72: Rest. | D72: Surco | E72: 2009-08-17 | F72: Altamirano, Frecia | G72: 13630
A73: 71 | B73: COMEDOR SECCION SECALIM | C73: Concesionarios | D73: San Borja | E73: 2009-09-11 | F73: Altamirano, Frecia | G73: 3630
A74: 72 | B74: CONTRERAS GUILLEN | C74: Distribuidores | D74: Ica | E74: 2008-04-09 | F74: Altamirano, Frecia | G74: 8880
A75: 73 | B75: CORPORA LA REGIONAL S.R.L. | C75: Distribuidores | D75: Huancayo | E75: 2008-06-22 | F75: Altamirano, Frecia | G75: 12670
A76: 74 | B76: DIRECCION REGIONAL LIMA-INPE | C76: Inst. Públicas | D76: Lima | E76: 2007-12-15 | F76: Altamirano, Frecia | G76: 4540
A77: 75 | B77: EL CENTRO S.A. | C77: Distribuidores | D77: Chiclayo | E77: 2008-09-24 | F77: Altamirano, Frecia | G77: 4370
A78: 76 | B78: EMP. MUNIC. ADM. DE PEAJE DE LIMA S | C78: Inst. Públicas | D78: Surco | E78: 2007-09-13 | F78: Altamirano, Frecia | G78: 9400
A79: 77 | B79: EMP.PRODUCC.COMERC.Y SERV. | C79: Distribuidores | D79: Huacho | E79: 2007-12-05 | F79: Altamirano, Frecia | G79: 13430
A80: 78 | B80: SEGUNDA REGION AEREA TERRITORIAL | C80: Concesionarios | D80: Surco | E80: 2009-03-18 | F80: Altamirano, Frecia | G80: 7690
A81: 79 | B81: FERRER NOLASCO | C81: Distribuidores | D81: La Victoria | E81: 2007-09-24 | F81: Altamirano, Frecia | G81: 8800
A82: 80 | B82: FRISUR E.I.R.L. | C82: Distribuidores | D82: Cuzco | E82: 2008-07-08 | F82: Altamirano, Frecia | G82: 5360
A83: 81 | B83: HINOJOSA HUAMAN | C83: Distribuidores | D83: Cuzco | E83: 2008-04-29 | F83: Altamirano, Frecia | G83: 15530
A84: 82 | B84: HOSPITAL APOYO MARIA AUXILIADORA | C84: Inst. Públicas | D84: SJM | E84: 2009-09-25 | F84: Altamirano, Frecia | G84: 9520
A85: 83 | B85: HOSPITAL DE BARRANCA | C85: Concesionarios | D85: Lima | E85: 2009-05-08 | F85: Altamirano, Frecia | G85: 6650
A86: 84 | B86: HOSPITAL NACIONAL DOS DE MAYO | C86: Inst. Públicas | D86: Lima | E86: 2008-08-17 | F86: Ulloa, Manuel | G86: 13260
A87: 85 | B87: HOSPITAL NACIONAL ARZOBISPO LOAYZA | C87: Inst. Públicas | D87: Lima | E87: 2008-09-15 | F87: Altamirano, Frecia | G87: 2540
A88: 86 | B88: HOSPITAL NACIONAL HIPOLITO UNANUE | C88: Inst. Públicas | D88: El Agustino | E88: 2008-07-27 | F88: Ulloa, Manuel | G88: 3140
A89: 87 | B89: HOSPITAL NAC.DOCENTE SAN BARTOLOME | C89: Inst. Públicas | D89: Lima | E89: 2007-01-14 | F89: Altamirano, Frecia | G89: 6360
A90: 88 | B90: HOSPITAL HOGAR DE LA MADRE | C90: Inst. Públicas | D90: Miraflores | E90: 2009-12-14 | F90: Altamirano, Frecia | G90: 13540
A91: 89 | B91: INST. NAC. DE CIENCIAS NEUROLOG | C91: Inst. Públicas | D91: Lima | E91: 2008-11-26 | F91: Ulloa, Manuel | G91: 3270
A92: 90 | B92: INST. NAC. DE ENFERMEDADES NEOPLASICAS | C92: Inst. Públicas | D92: Surquillo | E92: 2007-04-01 | F92: Ulloa, Manuel | G92: 12450
A93: 91 | B93: INV. AGROP. SANTA LUCIA S.R. LTDA | C93: Distribuidores | D93: Ica | E93: 2008-05-19 | F93: Ulloa, Manuel | G93: 7200
A94: 92 | B94: M Y C REPRESENTACIONES E.I.R.L | C94: Distribuidores | D94: Cuzco | E94: 2009-05-02 | F94: Altamirano, Frecia | G94: 8860
A95: 93 | B95: MARQUEZ REINOSO | C95: Distribuidores | D95: Huaral | E95: 2008-01-18 | F95: Ulloa, Manuel | G95: 2780
A96: 94 | B96: MINISTERIO DE EDUCACION | C96: Inst. Públicas | D96: San Borja | E96: 2007-03-24 | F96: Altamirano, Frecia | G96: 12110
A97: 95 | B97: MONTES DE LLAJARUNA | C97: Distribuidores | D97: La Libertad | E97: 2007-01-12 | F97: Altamirano, Frecia | G97: 14640
A98: 96 | B98: MULTI MARKET ASAMBLEA E.I.R.L | C98: Distribuidores | D98: Ayacucho | E98: 2009-03-30 | F98: Ulloa, Manuel | G98: 14570
A99: 97 | B99: ORION DISTRIBUCIONES S.R.LTDA | C99: Concesionarios | D99: Cuzco | E99: 2008-07-17 | F99: Altamirano, Frecia | G99: 14880
A100: 98 | B100: PAREDES AGUIRRE | C100: Minoristas | D100: Lurin | E100: 2009-05-28 | F100: Altamirano, Frecia | G100: 3680
A101: 99 | B101: PRODUCTOS RAZZETO & NESTOROVIC | C101: Distribuidores | D101: San Luis | E101: 2009-05-29 | F101: Ulloa, Manuel | G101: 10530
A102: 100 | B102: REFRISA S.R.LTDA | C102: Distribuidores | D102: La Molina | E102: 2009-01-09 | F102: Ulloa, Manuel | G102: 11030

Sheet Minigráficos
B2: Cantidad1 | C2: Cantidad2 | D2: Cantidad3 | E2: Cantidad4 | F2: Cantidad5 | G2: Cantidad6 | H2: Cantidad7 | I2: Cantidad8 | J2: Cantidad9 | K2: Cantidad10
B3: 179 | C3: 197 | D3: 142 | E3: 174 | F3: 184 | G3: 187 | H3: 146 | I3: 132 | J3: 195 | K3: 114
B4: 165 | C4: 163 | D4: 117 | E4: 192 | F4: 150 | G4: 175 | H4: 108 | I4: 145 | J4: 122 | K4: 134
B5: 147 | C5: 126 | D5: 122 | E5: 191 | F5: 106 | G5: 186 | H5: 186 | I5: 119 | J5: 100 | K5: 106
B6: 199 | C6: 142 | D6: 190 | E6: 194 | F6: 170 | G6: 118 | H6: 176 | I6: 165 | J6: 124 | K6: 188
B7: 185 | C7: 160 | D7: 153 | E7: 104 | F7: 165 | G7: 195 | H7: 194 | I7: 104 | J7: 172 | K7: 125
B8: 163 | C8: 149 | D8: 132 | E8: 143 | F8: 118 | G8: 158 | H8: 182 | I8: 128 | J8: 153 | K8: 100
B9: 160 | C9: 171 | D9: 114 | E9: 103 | F9: 187 | G9: 149 | H9: 194 | I9: 174 | J9: 115 | K9: 136
B10: 116 | C10: 172 | D10: 193 | E10: 177 | F10: 153 | G10: 182 | H10: 165 | I10: 198 | J10: 110 | K10: 103

Sheet Gráficos
B2: Cantidad | C2: Clientes A | D2: Rentabilidad | E2: Clientes B
B3: 1 | C3: 5128 | D3: 0.26 | E3: 5128
B4: 2 | C4: 6903 | D4: 0.37 | E4: 6903
B5: 3 | C5: 8664 | D5: 0.4 | E5: 8664
B6: 4 | C6: 13589 | D6: 0.28 | E6: 13589
B7: 5 | C7: 17958 | D7: 0.31 | E7: 18000
B8: 6 | C8: 18788 | D8: 0.19 | E8: 18788
B9: 7 | C9: 13801 | D9: 0.26 | E9: 13801
B10: 8 | C10: 12568 | D10: 0.24 | E10: 15000
B11: 9 | C11: 10979 | D11: 0.18 | E11: 10979
B12: 10 | C12: 10313 | D12: 0.4 | E12: 10313
B13: 11 | C13: 9894 | D13: 0.31 | E13: 10000
B14: 12 | C14: 7864 | D14: 0.4 | E14: 7864

Sheet Caso
D1: Ventas
D2: Enero | E2: Febrero | F2: Marzo | G2: Abril | H2: Mayo | I2: Junio | J2: Julio | K2: Agosto | L2: Septiembre | M2: Octubre | N2: Noviembre | O2: Diciembre | P2: Total | Q2: Promedio | R2: Porcentaje | S2: Años de Servicio
C3: Vendedor 1 | D3: 21943 | E3: 30422 | F3: 30494 | G3: 28996 | H3: 22832 | I3: 30000 | J3: 33272 | K3: 27011 | L3: 26809 | M3: 33609 | N3: 28473 | O3: 24860 | P3: =SUM(D3:O3) -> 338721 | Q3: =AVERAGE(D3:O3) -> 28226.75 | R3: =Q3/$Q$15 -> 0.094156253 | S3: 7
C4: Vendedor 2 | D4: 28284 | E4: 31765 | F4: 22191 | G4: 20873 | H4: 24912 | I4: 27219 | J4: 21891 | K4: 22290 | L4: 25910 | M4: 34887 | N4: 24039 | O4: 25675 | P4: =SUM(D4:O4) -> 309936 | Q4: =AVERAGE(D4:O4) -> 25828 | R4: =Q4/$Q$15 -> 0.08615471857 | S4: 6
C5: Vendedor 3 | D5: 33394 | E5: 44267 | F5: 37129 | G5: 51032 | H5: 31047 | I5: 44558 | J5: 37299 | K5: 68971 | L5: 65223 | M5: 45340 | N5: 64613 | O5: 67571 | P5: 590444 | Q5: 49203.66667 | R5: 0.1641291643 | S5: 10
C6: Vendedor 4 | D6: 48216 | E6: 66004 | F6: 49878 | G6: 60807 | H6: 41155 | I6: 29631 | J6: 61065 | K6: 63208 | L6: 75279 | M6: 50984 | N6: 53092 | O6: 35948 | P6: 635267 | Q6: 52938.91667 | R6: 0.1765888751 | S6: 9
C7: Vendedor 5 | D7: 33320 | E7: 25870 | F7: 33639 | G7: 32923 | H7: 31388 | I7: 25136 | J7: 25625 | K7: 28205 | L7: 20585 | M7: 34894 | N7: 26897 | O7: 33336 | P7: 351818 | Q7: 29318.16667 | R7: 0.09779690252 | S7: 7
C8: Vendedor 6 | D8: 33798 | E8: 20839 | F8: 23296 | G8: 21957 | H8: 28391 | I8: 31187 | J8: 25496 | K8: 22962 | L8: 24542 | M8: 24946 | N8: 27285 | O8: 32786 | P8: 317485 | Q8: 26457.08333 | R8: 0.08825315815 | S8: 7
C9: Vendedor 7 | D9: 33408 | E9: 27671 | F9: 20587 | G9: 28327 | H9: 31574 | I9: 23781 | J9: 25703 | K9: 22836 | L9: 28741 | M9: 27591 | N9: 23804 | O9: 27564 | P9: 321587 | Q9: 26798.91667 | R9: 0.08939341503 | S9: 7
C10: Vendedor 8 | D10: 11407 | E10: 11460 | F10: 11607 | G10: 13765 | H10: 11759 | I10: 13578 | J10: 14277 | K10: 11482 | L10: 11102 | M10: 10059 | N10: 13513 | O10: 10299 | P10: 144308 | Q10: 12025.66667 | R10: 0.04011413688 | S10: 4
C11: Vendedor 9 | D11: 12723 | E11: 11304 | F11: 10508 | G11: 11754 | H11: 12772 | I11: 12389 | J11: 10098 | K11: 10414 | L11: 14092 | M11: 13735 | N11: 12984 | O11: 10535 | P11: 143308 | Q11: 11942.33333 | R11: 0.03983616104 | S11: 3
C12: Vendedor 10 | D12: 14740 | E12: 13479 | F12: 10787 | G12: 14690 | H12: 13933 | I12: 10626 | J12: 14810 | K12: 11003 | L12: 11276 | M12: 11798 | N12: 12476 | O12: 14735 | P12: 154353 | Q12: 12862.75 | R12: 0.04290640415 | S12: 4
C13: Vendedor 11 | D13: 11118 | E13: 12795 | F13: 14895 | G13: 10272 | H13: 12050 | I13: 13472 | J13: 13451 | K13: 14136 | L13: 12399 | M13: 12521 | N13: 11521 | O13: 13142 | P13: 151772 | Q13: 12647.66667 | R13: 0.04218894851 | S13: 4
C14: Vendedor 12 | D14: 12861 | E14: 12755 | F14: 10756 | G14: 13274 | H14: 11128 | I14: 12994 | J14: 10145 | K14: 10481 | L14: 12525 | M14: 10659 | N14: 10215 | O14: 10643 | P14: 138436 | Q14: 11536.33333 | R14: 0.03848186277 | S14: 3
C15: Total | D15: =SUM(D3:D14) -> 295212 | E15: =SUM(E3:E14) -> 308631 | F15: 275767 | G15: 308670 | H15: 272941 | I15: 274571 | J15: 293132 | K15: 312999 | L15: 328483 | M15: 311023 | N15: 308912 | O15: 307094 | P15: 3597435 | Q15: =SUM(Q3:Q14) -> 299786.25 | R15: =SUM(R3:R14) -> 1
C18: Fuente: | D18: Web de Excel Intemedio

Sheet Macros
A1: 1
A2: 2
A3: 3
A4: 4
A5: 5
A6: 6
A7: 7
A8: 8
A9: 9
A10: 10
A11: 11
A12: 12
A13: 13
A14: 14
A15: 15
A16: 16
A17: 17
A18: 18
A19: 19
A20: 20
A21: 21
A22: 22
A23: 23
A24: 24
A25: 25
A26: 26
A27: 27
A28: 28
A29: 29
A30: 30
A31: 31
A32: 32
A33: 33
A34: 34
A35: 35
A36: 36
A37: 37
A38: 38
A39: 39
A40: 40
A41: 41
A42: 42
A43: 43
A44: 44
A45: 45
A46: 46
A47: 47
A48: 48
A49: 49
A50: 50
A51: 51
A52: 52
A53: 53
A54: 54
A55: 55
A56: 56
A57: 57
A58: 58
A59: 59
A60: 60
A61: 61
A62: 62
A63: 63
A64: 64
A65: 65
A66: 66
A67: 67
A68: 68
A69: 69
A70: 70
A71: 71
A72: 72
A73: 73
A74: 74
A75: 75
A76: 76
A77: 77
A78: 78
A79: 79
A80: 80
A81: 81
A82: 82
A83: 83
A84: 84
A85: 85
A86: 86
A87: 87
A88: 88
A89: 89
A90: 90
A91: 91
A92: 92
A93: 93
A94: 94
A95: 95
A96: 96
A97: 97
A98: 98
A99: 99
A100: 100

Sheet Temporal
B2: Vendedor | C2: Enero | D2: Febrero | E2: Marzo | F2: Abril | G2: Mayo | H2: Junio | I2: Julio | J2: Agosto | K2: Septiembre | L2: Octubre | M2: Noviembre | N2: Diciembre
B3: Vendedor 1 | C3: 21943 | D3: 30422 | E3: 30494 | F3: 28996 | G3: 22832 | H3: 30000 | I3: 33272 | J3: 27011 | K3: 26809 | L3: 33609 | M3: 28473 | N3: 24860
B4: Vendedor 2 | C4: 28284 | D4: 31765 | E4: 22191 | F4: 20873 | G4: 24912 | H4: 27219 | I4: 21891 | J4: 22290 | K4: 25910 | L4: 34887 | M4: 24039 | N4: 25675
B5: Vendedor 3 | C5: 33394 | D5: 44267 | E5: 37129 | F5: 51032 | G5: 31047 | H5: 44558 | I5: 37299 | J5: 68971 | K5: 65223 | L5: 45340 | M5: 64613 | N5: 67571
B6: Vendedor 4 | C6: 48216 | D6: 66004 | E6: 49878 | F6: 60807 | G6: 41155 | H6: 29631 | I6: 61065 | J6: 63208 | K6: 75279 | L6: 50984 | M6: 53092 | N6: 35948
B7: Vendedor 5 | C7: 33320 | D7: 25870 | E7: 33639 | F7: 32923 | G7: 31388 | H7: 25136 | I7: 25625 | J7: 28205 | K7: 20585 | L7: 34894 | M7: 26897 | N7: 33336
B8: Vendedor 6 | C8: 33798 | D8: 20839 | E8: 23296 | F8: 21957 | G8: 28391 | H8: 31187 | I8: 25496 | J8: 22962 | K8: 24542 | L8: 24946 | M8: 27285 | N8: 32786
B9: Vendedor 7 | C9: 33408 | D9: 27671 | E9: 20587 | F9: 28327 | G9: 31574 | H9: 23781 | I9: 25703 | J9: 22836 | K9: 28741 | L9: 27591 | M9: 23804 | N9: 27564
B10: Vendedor 8 | C10: 11407 | D10: 11460 | E10: 11607 | F10: 13765 | G10: 11759 | H10: 13578 | I10: 14277 | J10: 11482 | K10: 11102 | L10: 10059 | M10: 13513 | N10: 10299
B11: Vendedor 9 | C11: 12723 | D11: 11304 | E11: 10508 | F11: 11754 | G11: 12772 | H11: 12389 | I11: 10098 | J11: 10414 | K11: 14092 | L11: 13735 | M11: 12984 | N11: 10535
B12: Vendedor 10 | C12: 14740 | D12: 13479 | E12: 10787 | F12: 14690 | G12: 13933 | H12: 10626 | I12: 14810 | J12: 11003 | K12: 11276 | L12: 11798 | M12: 12476 | N12: 14735
B13: Vendedor 11 | C13: 11118 | D13: 12795 | E13: 14895 | F13: 10272 | G13: 12050 | H13: 13472 | I13: 13451 | J13: 14136 | K13: 12399 | L13: 12521 | M13: 11521 | N13: 13142
B14: Vendedor 12 | C14: 12861 | D14: 12755 | E14: 10756 | F14: 13274 | G14: 11128 | H14: 12994 | I14: 10145 | J14: 10481 | K14: 12525 | L14: 10659 | M14: 10215 | N14: 10643
